bitfinex-derivatives/quotes_ETHF0:USTF0_20251021
["timestamp","ask_amount","ask_price","bid_price","bid_amount"]
[1761080501729,3.9934,3954.6,3954.5,0.4439]
[1761080503120,3.7731,3954.6,3954.5,1.24568]
[1761080503526,3.7731,3954.6,3954.5,0.7907]
[1761080503717,0.7856,3954.6,3954.5,0.7907]
[1761080503914,0.7856,3954.6,3954.5,0.4439]
[1761080505230,0.5653,3954.6,3954.5,1.24568]
[1761080505529,0.00283569,3954.8,3954.7,1.24566]
[1761080507827,0.3372,3955.4,3955.3,0.7907]
[1761080508028,0.3372,3955.4,3955.3,9.8327]
[1761080508227,0.3372,3955.7,3955.3,9.4859]
[1761080508530,0.2281,3955.7,3955.6,0.4439]
[1761080508930,0.78859056,3955.7,3955.6,0.4439]
[1761080509230,0.78859056,3955.7,3955.6,0.2192]
[1761080511030,0.78859056,3955.7,3955.3,9.042]
[1761080511233,0.7836,3955.4,3955.3,9.4934]
[1761080511737,0.7836,3955.4,3955.3,9.8425]
[1761080514229,0.5613,3955.4,3955.3,10.29739]
[1761080514428,0.56429056,3955.7,3955.6,0.8005]
[1761080515435,0.78659056,3955.7,3955.6,0.4514]
[1761080516035,0.78659056,3955.7,3955.6,0.8005]
[1761080516036,0.56429056,3955.7,3955.6,0.8005]
[1761080516734,0.218,3956.1,3955.9,0.45481]
[1761080516930,0.7836,3956.1,3956.0,9.4914]
[1761080517129,0.7836,3956.1,3956.0,9.8405]
[1761080517733,0.78662074,3956.1,3956.0,9.8405]
[1761080518430,0.34632074,3956.1,3956.0,10.29531]
[1761080518831,0.00302074,3956.1,3956.0,10.29531]
[1761080519633,0.00302074,3956.1,3956.0,10.41601]
[1761080520035,0.00302074,3956.1,3956.0,10.29531]
[1761080520237,0.56432074,3956.1,3956.0,9.8405]
[1761080520436,0.34632074,3956.1,3956.0,10.29531]
[1761080520934,0.3433,3956.0,3955.4,3.6592]
[1761080521239,0.9096,3955.5,3955.4,0.65023259]
[1761080521435,0.9096,3955.5,3955.4,9.4904]
[1761080521627,0.00302074,3956.1,3956.0,0.45481]
[1761080521833,0.3433,3956.5,3956.4,0.8005]
[1761080522034,0.6873,3956.5,3956.4,9.8395]
[1761080522234,0.9096,3956.5,3956.4,9.4904]
[1761080522834,0.9122716,3956.5,3956.4,9.8395]
[1761080523031,0.9122716,3956.5,3956.4,9.4904]
[1761080524043,0.0026716,3956.5,3956.4,10.29426]
[1761080525345,0.6899716,3956.5,3956.4,9.8395]
[1761080525544,0.9122716,3956.5,3956.4,9.8395]
[1761080526946,0.9122716,3956.5,3956.4,9.4904]
[1761080527140,0.9122716,3956.5,3956.4,10.29426]
[1761080527350,0.0026716,3956.5,3956.4,10.29426]
[1761080527832,0.3459716,3956.5,3956.4,9.8395]
[1761080528033,0.3433,3956.4,3956.1,3.6592]
[1761080528245,0.7836,3956.2,3956.1,3.6592]
[1761080528543,0.3433,3956.1,3955.6,0.4514]
[1761080528746,0.7836,3955.7,3955.3,0.2211]
[1761080528938,0.7836,3955.4,3955.1,3.2078]
[1761080529145,0.7836,3955.3,3955.2,9.2581]
[1761080529340,0.7836,3955.3,3955.2,9.4884]
[1761080529545,0.5613,3955.3,3955.2,9.8375]
[1761080529735,0.3433,3955.9,3955.4,0.4514]
[1761080530042,0.6873,3956.0,3955.9,0.8005]
[1761080530241,0.9096,3956.0,3955.9,9.4884]
[1761080530443,0.9096,3956.0,3955.9,9.037]
[1761080530643,0.9096,3956.0,3955.9,9.2581]
[1761080531543,0.4403,3955.6,3955.5,3.4289]
[1761080531743,0.3433,3955.6,3955.5,13.0453]
[1761080532048,0.3433,3955.6,3955.5,9.8375]
[1761080532246,0.5613,3955.6,3955.5,9.8375]
[1761080532639,0.7836,3955.6,3955.5,9.4884]
[1761080532843,3.9914,3955.6,3955.5,9.2581]
[1761080533045,3.9914,3955.6,3955.5,9.4884]
[1761080537156,3.9914,3955.6,3955.5,9.2581]
[1761080537851,3.9914,3955.6,3955.5,9.4884]
[1761080539859,3.9914,3955.6,3955.5,9.8113]
[1761080540353,3.2078,3955.6,3955.5,9.037]
[1761080540557,3.2078,3955.6,3955.5,10.25477]
[1761080540558,3.5266,3955.6,3955.5,10.25477]
[1761080541150,0.7657,3956.3,3956.2,0.4433]
[1761080541455,1.35976147,3956.3,3956.2,9.2604]
[1761080542058,0.7657,3956.3,3956.2,9.2604]
[1761080542259,1.35976013,3956.3,3956.2,9.2604]
[1761080543261,1.35976013,3956.3,3956.2,9.4803]
[1761080543852,0.7657,3956.3,3956.2,10.27369]
[1761080544557,0.7657,3956.3,3956.2,9.4803]
[1761080544760,0.7657,3956.3,3956.2,0.4433]
[1761080544950,0.7657,3956.3,3956.2,9.4803]
[1761080545255,1.35995088,3956.3,3956.2,9.037]
[1761080547759,0.6741,3955.5,3955.4,1.23678]
[1761080547963,0.8933,3955.5,3955.4,10.27278]
[1761080548261,0.8933,3955.5,3955.4,0.4433]
[1761080548451,0.4347,3955.2,3955.1,0.4433]
[1761080548650,0.7657,3955.2,3955.1,9.4793]
[1761080549153,0.7657,3955.2,3955.1,9.93422]
[1761080549960,0.7657,3955.2,3955.1,9.4793]
[1761080550554,0.7657,3955.2,3955.1,10.27282]
[1761080551347,0.7657,3955.2,3955.1,9.8179]
[1761080551753,0.7657,3955.2,3955.1,9.4793]
[1761080552154,0.1276,3955.0,3954.7,0.2234]
[1761080552362,0.5465,3954.8,3954.7,0.67835]
[1761080552561,0.7657,3954.8,3954.7,9.93425]
[1761080552760,0.7657,3954.8,3954.7,10.27285]
[1761080554763,0.7657,3954.8,3954.7,0.2234]
[1761080554969,0.4347,3954.8,3954.7,9.036]
[1761080555461,0.331,3954.7,3954.4,0.2234]
[1761080555678,0.8933,3954.5,3954.4,0.2234]
[1761080555978,0.8933,3954.5,3954.4,9.7144]
[1761080556178,3.2078,3955.8,3955.7,0.79345]
[1761080556370,3.7543,3956.3,3956.2,0.7819]
[1761080556569,3.9735,3956.3,3956.2,9.4793]
[1761080556876,0.3457716,3956.5,3956.3,0.45478]
[1761080557072,0.331,3956.4,3956.3,0.89808]
[1761080557278,0.5465,3956.4,3956.3,0.89808]
[1761080557684,0.7657,3956.4,3956.3,0.4433]
[1761080558174,0.7657,3956.4,3956.3,0.2234]
[1761080558375,0.7657,3956.4,3956.3,9.2594]
[1761080558883,0.7657,3956.4,3956.3,9.4793]
[1761080559981,0.5465,3956.4,3956.3,9.8179]
[1761080560182,0.0026716,3956.5,3956.4,1.23667]
[1761080560381,3.2078,3957.4,3957.3,0.7819]
[1761080560584,3.2078,3957.4,3957.3,9.8179]
[1761080561381,0.00180895,3957.4,3957.3,9.82030142]
[1761080563788,0.76750895,3957.4,3957.3,9.48170142]
[1761080564075,0.76750895,3957.4,3957.3,9.26080142]
[1761080567186,0.76750895,3957.4,3957.3,9.48070142]
[1761080568090,0.76750895,3957.4,3957.3,0.00240142]
[1761080568387,0.76750895,3957.4,3957.3,0.22580142]
[1761080572190,0.76750895,3957.4,3957.3,0.90038142]
[1761080572388,0.00180895,3957.4,3957.3,1.21548142]
[1761080576192,0.55930895,3957.4,3957.3,1.21548142]
[1761080576397,0.32900895,3957.4,3957.3,1.21548142]
[1761080576595,0.00180895,3957.4,3957.3,1.21548142]
[1761080580198,0.78860895,3957.4,3957.3,0.00240142]
[1761080580394,5.78860895,3957.4,3957.3,0.00240142]
[1761080580702,5.78860895,3957.4,3957.3,0.43870142]
[1761080580703,0.32900895,3957.4,3957.3,0.43870142]
[1761080580903,0.32900895,3957.4,3957.3,0.75380142]
[1761080581305,0.55930895,3957.4,3957.3,0.75380142]
[1761080581612,0.3272,3958.3,3957.3,5.43870142]
[1761080581792,0.5575,3958.3,3958.2,0.7514]
[1761080582402,0.5575,3958.3,3958.2,1.20598]
[1761080582603,0.55936357,3958.3,3958.2,0.7514]
[1761080583704,0.3272,3958.2,3958.1,9.032]
[1761080583904,0.7868,3958.2,3958.1,9.2444]
[1761080584104,0.5575,3958.2,3958.1,9.4683]
[1761080584404,0.5575,3958.2,3958.1,9.7834]
[1761080585202,0.7868,3958.2,3958.1,9.4683]
[1761080586305,0.3272,3958.2,3958.1,10.23799]
[1761080586606,0.7868,3958.2,3958.1,9.032]
[1761080586806,0.7868,3957.4,3957.3,0.43870142]
[1761080587008,3.9946,3957.4,3957.3,9.46970142]
[1761080587599,3.9946,3957.4,3957.3,9.78480142]
[1761080587806,0.89627449,3959.1,3958.2,0.2124]
[1761080588002,1.34441174,3959.7,3959.6,0.7514]
[1761080588197,0.4596,3959.9,3959.8,0.5275]
[1761080588405,0.4596,3959.9,3959.8,0.7514]
[1761080588796,3.2078,3960.0,3959.9,0.7514]
[1761080589094,3.2097837,3960.0,3959.9,0.7514]
[1761080590706,3.4400837,3960.0,3959.9,0.7514]
[1761080592009,3.4400837,3960.0,3959.9,9.8024]
[1761080592607,3.2097837,3960.0,3959.9,9.8024]
[1761080593711,0.0019837,3960.0,3959.9,9.8024]
[1761080594715,0.4615837,3960.0,3959.9,9.8024]
[1761080595109,0.7887837,3960.0,3959.9,9.8024]
[1761080595305,0.4615837,3960.0,3959.9,9.8024]
[1761080595816,0.7887837,3960.0,3959.9,9.8024]
[1761080598817,0.4615837,3960.0,3959.9,10.25678]
[1761080599012,5.4615837,3960.0,3959.5,0.1336]
[1761080599220,3.7835,3959.7,3959.2,0.89186]
[1761080599418,3.4341,3959.7,3959.6,0.4374]
[1761080599620,3.4341,3959.7,3959.6,0.7823]
[1761080600421,3.6461,3959.7,3959.6,0.7823]
[1761080600620,4.10051,3959.7,3959.6,0.7823]
[1761080600822,4.43811,3959.7,3959.6,0.3449]
[1761080601223,4.43811,3959.7,3959.6,0.562]
[1761080603128,0.7822,3959.4,3959.3,9.3929]
[1761080603330,0.7822,3959.4,3959.3,9.61]
[1761080603630,0.7822,3959.4,3959.3,9.8325]
[1761080603826,0.4446,3959.4,3959.3,9.8325]
[1761080606740,0.89904,3959.4,3959.3,9.8325]
[1761080610839,0.4446,3959.4,3959.3,9.8325]
[1761080612138,0.45443,3959.6,3959.5,0.3545]
[1761080612342,3.6622,3959.7,3959.6,0.7685]
[1761080612835,3.2078,3959.7,3959.6,0.7685]
[1761080613333,4.44441,3959.7,3959.6,0.7685]
[1761080613534,4.44441,3959.7,3959.6,7.14]
[1761080614341,4.10681,3959.7,3959.6,7.3625]
[1761080615244,3.2078,3959.7,3959.6,7.3625]
[1761080615433,3.66221,3959.7,3959.6,7.3625]
[1761080615633,4.44441,3959.7,3959.6,0.7685]
[1761080617437,5.01462209,3959.7,3959.6,0.7685]
[1761080618544,5.01462209,3959.7,3959.6,0.546]
[1761080621242,4.67702209,3959.7,3959.6,0.7685]
[1761080621446,4.45062209,3959.7,3959.6,0.7685]
[1761080624047,3.77801209,3959.7,3959.6,0.7685]
[1761080624546,3.77801209,3959.7,3959.6,1.22293]
[1761080625550,3.77801209,3959.7,3959.6,0.7685]
[1761080629649,0.57021209,3959.7,3959.6,0.7685]
[1761080630151,3.2078,3959.9,3959.7,0.3289]
[1761080630152,3.88039,3959.9,3959.7,0.3289]
[1761080630453,4.10679,3959.9,3959.8,9.7975]
[1761080630753,4.67806188,3959.9,3959.8,9.7975]
[1761080631055,4.22367188,3959.9,3959.8,9.7975]
[1761080633048,0.0019837,3960.0,3959.9,0.79519]
[1761080633350,0.2165,3961.1,3961.0,0.1277]
[1761080633650,1.32393006,3961.1,3961.0,0.912]
[1761080633856,0.99833006,3961.1,3961.0,0.912]
[1761080634449,1.00051878,3961.1,3961.0,0.91477539]
[1761080635341,1.00051878,3961.1,3961.0,1.36903539]
[1761080635541,0.21868872,3961.1,3961.0,1.36903539]
[1761080636352,0.21868872,3961.1,3961.0,0.91477539]
[1761080636742,0.21868872,3961.1,3961.0,1.36903539]
[1761080636956,0.21868872,3961.1,3961.0,0.91477539]
[1761080641858,0.00218872,3961.1,3961.0,0.91477539]
[1761080642060,3.2078,3961.6,3961.5,0.912]
[1761080642264,3.2078,3961.6,3961.5,9.946]
[1761080642947,3.2078,3962.0,3961.9,0.7843]
[1761080643153,3.21105559,3962.0,3961.9,9.8283]
[1761080643354,3.21105559,3962.0,3961.9,15.28246]
[1761080643555,0.00325559,3962.0,3961.9,15.28246]
[1761080643764,0.21975559,3962.0,3961.9,9.8283]
[1761080644463,0.00325559,3962.0,3961.9,9.8283]
[1761080644766,0.00325559,3962.0,3961.9,10.28246]
[1761080651270,0.022,3962.8,3962.7,0.7843]
[1761080651566,0.022,3962.8,3962.7,9.8223]
[1761080652156,0.02410364,3962.8,3962.7,9.8223]
[1761080652670,0.02410364,3962.8,3962.7,10.27637]
[1761080654571,0.02410364,3962.8,3962.7,13.48417]
[1761080654865,0.77740364,3962.8,3962.7,9.8233]
[1761080655464,0.45180364,3962.8,3962.7,9.8233]
[1761080655659,0.45180364,3962.8,3961.9,1.1354]
[1761080655660,0.2165,3962.4,3962.3,0.2208]
[1761080655864,0.7533,3962.4,3962.3,9.3808]
[1761080656060,0.7533,3962.4,3962.3,9.6016]
[1761080656061,1.2074,3962.4,3962.3,9.6016]
[1761080656661,1.20744,3962.1,3962.0,0.3408]
[1761080656869,0.4277,3961.7,3961.6,0.5616]
[1761080657062,0.4277,3961.7,3961.6,0.7843]
[1761080657267,1.20748,3961.7,3961.6,0.7843]
[1761080657464,0.7533,3961.3,3961.2,0.5616]
[1761080657663,0.7533,3961.3,3961.2,7.0976]
[1761080658061,0.4277,3961.3,3961.2,7.3203]
[1761080658261,0.7533,3961.2,3961.1,0.3408]
[1761080658467,0.7533,3961.2,3961.1,0.5616]
[1761080658672,0.7533,3961.2,3961.1,6.6753]
[1761080658874,0.4277,3961.2,3961.1,6.6753]
[1761080659573,0.7575,3961.2,3961.1,9.8243]
[1761080659773,0.7575,3961.2,3961.1,9.04]
[1761080659965,0.7575,3961.2,3961.1,9.3897]
[1761080660164,0.7575,3961.2,3961.1,9.6183]
[1761080660669,0.7575,3961.2,3961.1,0.5783]
[1761080661064,0.5446,3962.6,3962.2,0.3355]
[1761080661364,0.5446,3962.6,3962.1,0.4268]
[1761080661365,3.45110364,3962.8,3962.6,0.3355]
[1761080661571,3.45110364,3962.8,3962.7,0.7623]
[1761080661875,3.66370364,3962.8,3962.7,0.7623]
[1761080662667,0.24330364,3962.8,3962.7,0.7623]
[1761080663057,0.45590364,3962.8,3962.7,0.7623]
[1761080663466,3.98910364,3962.8,3962.7,0.7623]
[1761080664271,3.66370364,3962.8,3962.7,0.7623]
[1761080665774,0.45590364,3962.8,3962.7,0.7623]
[1761080666770,0.02410364,3962.8,3962.7,0.7623]
[1761080667161,0.78130364,3962.8,3962.7,0.7623]
[1761080667566,0.45590364,3962.8,3962.7,0.7623]
[1761080668168,0.45590364,3962.8,3962.7,1.21637]
[1761080668371,0.45590364,3962.8,3962.7,0.7623]
[1761080670177,0.02410364,3962.8,3962.7,0.7623]
[1761080671476,1.23536364,3962.8,3962.7,0.7623]
[1761080672273,0.02410364,3962.8,3962.7,0.7623]
[1761080672865,0.02410364,3962.8,3962.7,1.21637]
[1761080673269,0.02410364,3962.8,3962.7,0.7623]
[1761080673574,0.24330364,3962.8,3962.7,0.7623]
[1761080673775,1.23536364,3962.8,3962.7,0.7623]
[1761080673971,0.90996364,3962.8,3962.7,0.7623]
[1761080674278,0.47816364,3962.8,3962.7,0.7623]
[1761080674479,0.02410364,3962.8,3962.7,0.7623]
[1761080679384,0.69736364,3962.8,3962.7,0.7623]
[1761080679586,0.24330364,3962.8,3962.7,0.7623]
[1761080680577,4.44316364,3962.8,3962.7,9.5715]
[1761080680771,3.90516364,3962.8,3962.7,9.7863]
[1761080681284,3.90516364,3962.8,3962.3,0.45411]
[1761080681285,0.8859,3962.4,3962.3,0.7623]
[1761080682478,1.2113,3962.4,3962.3,0.5475]
[1761080682679,4.4191,3962.4,3962.3,0.5475]
[1761080683183,4.4191,3962.4,3962.3,0.3355]
[1761080683879,0.886,3961.6,3961.5,0.5615]
[1761080684184,0.886,3961.6,3961.5,9.5855]
[1761080684485,0.886,3961.6,3961.5,9.921]
[1761080686879,0.886,3961.6,3961.3,0.45423]
[1761080686880,0.45423,3961.3,3961.2,0.3355]
[1761080687080,0.88603,3961.3,3961.2,0.7623]
[1761080687284,3.2078,3961.8,3961.5,0.1347]
[1761080687285,3.7524,3961.8,3961.5,0.1347]
[1761080687586,3.88112,3962.3,3962.2,0.7623]
[1761080688084,3.2078,3962.3,3962.2,0.7623]
[1761080688785,3.2078,3962.3,3962.2,1.21643]
[1761080689285,0.45408,3962.6,3962.5,0.897]
[1761080690285,0.45408,3962.6,3962.5,9.922]
[1761080690595,0.88588,3962.6,3962.5,9.922]
[1761080691090,0.67328,3962.6,3962.5,9.922]
[1761080691392,0.45408,3962.6,3962.5,9.922]
[1761080693083,3.2078,3962.7,3962.6,0.7778]
[1761080693385,3.66187,3962.7,3962.6,0.7778]
[1761080693781,0.47816364,3962.8,3962.6,0.4466]
[1761080693980,0.47816364,3962.8,3962.7,0.7778]
[1761080694786,0.91276364,3962.8,3962.7,0.7778]
[1761080696380,0.69216364,3962.8,3962.7,0.7778]
[1761080696686,0.47816364,3962.8,3962.7,0.7778]
[1761080697187,0.02410364,3962.8,3962.7,0.7778]
[1761080697487,0.02410364,3962.8,3962.7,1.23187]
[1761080697687,0.02410364,3962.8,3962.7,1.43007854]
[1761080697883,0.02410364,3962.8,3962.7,1.23187]
[1761080698589,0.02410364,3962.8,3962.7,0.7778]
[1761080700086,0.47816364,3962.8,3962.7,0.7778]
[1761080700392,0.02410364,3962.8,3962.7,0.7778]
[1761080703988,0.69216364,3962.8,3962.7,0.7778]
[1761080704194,1.23676364,3962.8,3962.7,9.5711]
[1761080705295,1.21267,3962.7,3962.6,9.3542]
[1761080706993,1.21267,3962.7,3962.6,9.023]
[1761080706994,6.21267,3962.7,3962.6,9.023]
[1761080707299,0.02410364,3962.8,3962.0,0.1347]
[1761080707300,1.21274,3962.1,3962.0,9.7058]
[1761080707596,0.66814,3962.1,3962.0,9.9355]
[1761080708088,0.88874,3962.1,3962.0,9.9355]
[1761080708291,1.21274,3962.1,3962.0,9.9355]
[1761080709688,1.21274,3962.1,3962.0,0.5481]
[1761080710394,1.21282,3961.4,3961.3,0.2169]
[1761080710599,4.42062,3961.4,3961.3,9.4696]
[1761080710894,4.42062,3961.4,3961.3,9.8008]
[1761080711198,3.66202,3961.4,3961.3,9.8008]
[1761080712297,3.2078,3961.4,3961.3,9.8008]
[1761080712494,3.6424,3962.4,3962.0,0.1284]
[1761080712693,4.0965,3962.4,3962.3,0.7778]
[1761080712893,4.66420221,3962.4,3962.3,0.7778]
[1761080713200,4.98820221,3962.4,3962.3,0.7778]
[1761080713498,4.98820221,3962.4,3962.3,0.5481]
[1761080713892,4.98820221,3962.4,3962.3,0.3312]
[1761080714092,1.21274,3962.1,3962.0,0.3453]
[1761080714294,0.88874,3962.1,3962.0,0.575]
[1761080714597,0.88874,3962.1,3962.0,0.9062]
[1761080715303,0.45414,3962.1,3962.0,0.9062]
[1761080715502,0.66814,3962.1,3962.0,0.9062]
[1761080715902,3.2078,3962.4,3962.2,0.4466]
[1761080716100,3.2078,3962.4,3962.3,10.25492]
[1761080717297,3.2078,3962.4,3962.3,9.8008]
[1761080717695,0.02410364,3962.8,3962.6,0.7778]
[1761080717696,0.45407,3962.7,3962.6,0.7778]
[1761080719810,0.67297,3962.7,3962.6,0.7778]
[1761080720014,0.89597,3962.7,3962.6,0.7778]
[1761080720504,0.89597,3962.7,3962.0,4.69131148]
[1761080720505,0.45414,3962.1,3962.0,1.69681148]
[1761080720699,0.67304,3962.1,3962.0,9.5744]
[1761080721104,3.2078,3962.4,3962.0,9.5744]
[1761080721303,4.03300364,3962.8,3962.7,0.5521]
[1761080721909,4.48706364,3962.8,3962.7,0.5521]
[1761080722903,0.45408,3962.6,3962.5,0.1324]
[1761080723113,1.25518,3962.6,3962.5,0.3343]
[1761080723309,1.25518,3962.6,3962.5,0.5521]
[1761080725104,0.91118,3962.6,3962.5,0.9029]
[1761080726107,1.25518,3962.6,3962.5,0.9029]
[1761080726407,0.91118,3962.6,3962.5,0.9029]
[1761080726612,0.68158,3962.6,3962.5,0.9029]
[1761080727212,0.45408,3962.6,3962.5,0.9029]
[1761080728315,1.25518,3962.6,3962.5,0.5521]
[1761080729107,0.91118,3962.6,3962.5,0.9029]
[1761080730425,0.45408,3962.6,3962.5,0.9029]
[1761080731923,0.68158,3962.6,3962.5,0.9029]
[1761080732418,0.45408,3962.6,3962.5,0.9029]
[1761080737538,0.45408,3962.7,3962.6,0.7705]
[1761080738338,0.68158,3962.7,3962.6,0.7705]
[1761080738938,0.91118,3962.7,3962.6,0.7705]
[1761080739938,0.45408,3962.7,3962.6,0.7705]
[1761080740637,3.23190364,3962.8,3962.7,0.3343]
[1761080740832,3.23190364,3962.8,3962.7,0.7705]
[1761080741034,3.23190364,3962.8,3962.7,10.24457]
[1761080741434,0.02410364,3962.8,3962.7,10.24457]
[1761080742231,0.02410364,3962.8,3962.7,15.24457]
[1761080744439,0.02410364,3962.8,3962.7,16.59968148]
[1761080744927,3.64e-06,3962.8,3962.7,16.59968148]
[1761080745133,1.13474,3964.3,3962.7,16.59968148]
[1761080745134,0.45388,3964.4,3964.3,0.3343]
[1761080745333,3.2078,3964.7,3964.4,0.7705]
[1761080745334,0.45387,3964.5,3964.4,0.7705]
[1761080745534,0.68137,3964.5,3964.4,0.7705]
[1761080746242,0.4570829,3964.5,3964.4,0.77358791]
[1761080749244,0.0032129,3964.5,3964.4,0.77358791]
[1761080749846,0.2307129,3964.5,3964.4,0.77358791]
[1761080750549,0.6845729,3964.5,3964.4,0.77358791]
[1761080753349,0.2307129,3964.5,3964.4,0.77358791]
[1761080753750,0.6845729,3964.5,3964.4,0.77358791]
[1761080754749,0.6845729,3964.5,3964.4,8.60558791]
[1761080754946,0.4570729,3964.5,3964.4,8.60558791]
[1761080755948,6.3586729,3964.5,3964.4,0.00308791]
[1761080756146,6.2369729,3964.5,3964.4,0.00308791]
[1761080756347,0.6827729,3964.5,3964.4,0.77068791]
[1761080756552,1.2369729,3964.5,3964.4,0.34248791]
[1761080757048,1.3586729,3964.5,3964.4,0.00308791]
[1761080757852,1.2369729,3964.5,3964.4,0.55588791]
[1761080758051,1.2369729,3964.5,3964.4,0.34248791]
[1761080758252,6.3586729,3964.5,3964.4,0.00308791]
[1761080758653,0.45394,3963.8,3963.7,0.3394]
[1761080758854,4.44164,3963.8,3963.7,0.3394]
[1761080759354,1.23387,3963.6,3963.5,8.1864]
[1761080759555,1.23387,3963.6,3963.5,8.3998]
[1761080759856,0.89747,3963.6,3963.5,8.75315694]
[1761080760255,0.45397,3963.6,3963.5,8.75315694]
[1761080760456,0.67967,3963.6,3963.5,8.75315694]
[1761080760659,3.2078,3963.8,3963.7,0.7676]
[1761080760956,4.44164,3963.8,3963.7,0.7676]
[1761080761150,1.23387,3963.6,3963.5,0.69135694]
[1761080761351,0.89747,3963.6,3963.5,0.90615694]
[1761080761561,0.45397,3963.6,3963.5,0.90615694]
[1761080763662,0.4435,3964.1,3964.0,0.9043]
[1761080764060,1.23381,3964.1,3964.0,0.5528]
[1761080764259,1.23381,3964.1,3964.0,0.9043]
[1761080764460,0.89741,3964.1,3964.0,0.9043]
[1761080766152,0.45391,3964.1,3964.0,0.9043]
[1761080766957,3.2078,3964.3,3964.0,0.9043]
[1761080767163,0.0032129,3964.5,3964.4,0.7676]
[1761080767559,3.2078,3965.2,3964.4,0.4282]
[1761080767760,3.6513,3965.2,3964.5,0.3501]
[1761080767958,1.2338,3964.2,3964.1,0.3394]
[1761080768153,0.6796,3964.2,3964.1,0.7676]
[1761080768463,4.4416,3964.2,3964.1,0.7676]
[1761080768662,4.44376618,3964.2,3964.1,0.7676]
[1761080770267,1.23596618,3964.2,3964.1,0.7676]
[1761080774664,1.23596618,3964.2,3964.1,0.5528]
[1761080774864,0.4435,3963.7,3963.5,0.00185694]
[1761080775062,1.23387,3963.6,3963.5,0.34125694]
[1761080775361,1.23387,3963.6,3963.5,0.55465694]
[1761080775764,1.23387,3963.6,3963.5,0.34125694]
[1761080775961,1.80101108,3963.6,3963.5,0.00185694]
[1761080776267,1.23392,3963.1,3963.0,0.3394]
[1761080776462,0.89757,3962.7,3962.6,0.4282]
[1761080776664,1.23397,3962.7,3962.6,0.2134]
[1761080777057,1.23397,3962.7,3962.6,0.5528]
[1761080777257,4.44177,3962.7,3962.6,0.00234701]
[1761080777666,5.00835091,3962.7,3962.6,0.00234701]
[1761080778166,4.44177,3962.7,3962.6,0.00234701]
[1761080778766,5.00790942,3962.7,3962.6,0.00234701]
[1761080779169,4.44177,3962.7,3962.6,0.00234701]
[1761080781465,3.4371,3963.1,3962.6,0.44334701]
[1761080781664,0.68328,3963.5,3963.4,0.441]
[1761080781867,1.23608,3963.5,3963.4,0.3315]
[1761080782264,1.23608,3963.5,3963.0,9.1516]
[1761080782265,0.2293,3962.8,3962.7,9.013]
[1761080782465,0.68336,3962.8,3962.7,9.454]
[1761080782667,0.45406,3962.8,3962.7,9.454]
[1761080782866,0.45406,3962.8,3962.7,9.7855]
[1761080783770,0.68336,3962.8,3962.7,9.7855]
[1761080785373,0.68334,3963.0,3962.9,0.441]
[1761080785570,0.68334,3963.0,3962.9,0.7725]
[1761080786868,0.45404,3963.0,3962.9,0.7725]
[1761080787973,1.23614,3963.0,3962.9,0.5514]
[1761080788675,0.45398,3963.5,3963.4,0.7725]
[1761080788973,4.10333,3963.9,3963.8,0.7725]
[1761080789378,0.45607618,3964.2,3964.1,0.7725]
[1761080791267,0.45396,3963.7,3963.6,0.3315]
[1761080791575,0.89556,3963.7,3963.6,0.7725]
[1761080791897,0.4416,3963.7,3963.6,0.7725]
[1761080792175,0.2293,3963.7,3963.6,0.7725]
[1761080794184,0.68326,3963.7,3963.6,0.7725]
[1761080796077,0.45396,3963.7,3963.6,0.7725]
[1761080796484,0.68326,3963.7,3963.6,0.7725]
[1761080796684,0.89556,3963.7,3963.6,0.7725]
[1761080796984,1.23606,3963.7,3963.6,0.7725]
[1761080797187,4.44386,3963.7,3963.6,0.7725]
[1761080798786,1.23608,3963.5,3963.4,8.5634]
[1761080799389,1.23608,3963.5,3963.4,8.7845]
[1761080799581,0.89558,3963.5,3963.4,8.7845]
[1761080800179,1.23608,3963.5,3963.4,8.7845]
[1761080801987,1.23608,3963.5,3963.4,8.5634]
[1761080803279,1.23608,3963.5,3963.4,0.5514]
[1761080807885,1.23608,3963.5,3963.4,0.7725]
[1761080811188,1.80321116,3963.5,3963.4,0.7725]
[1761080811992,0.45398,3963.5,3963.4,0.7725]
[1761080812986,0.67908,3963.5,3963.4,0.7725]
[1761080814086,0.90238,3963.5,3963.4,0.7725]
[1761080815182,0.45398,3963.5,3963.4,0.7725]
[1761080818792,0.67908,3963.5,3963.4,0.7725]
[1761080819081,0.67908,3963.5,3963.4,9.7835]
[1761080819680,1.22658,3963.5,3963.4,9.7835]
[1761080819885,1.22658,3963.5,3963.4,0.7725]
[1761080821091,0.90238,3963.5,3963.4,0.7725]
[1761080822192,0.45398,3963.5,3963.4,0.7725]
[1761080823389,0.45397,3963.6,3963.5,0.3255]
[1761080823687,0.67907,3963.6,3963.5,0.9132]
[1761080823893,1.02149695,3963.6,3963.5,0.9132]
[1761080824286,1.24659695,3963.6,3963.5,0.9132]
[1761080824886,1.02149695,3963.6,3963.5,0.9132]
[1761080825598,1.24659695,3963.6,3963.5,0.9132]
[1761080825990,1.02149695,3963.6,3963.5,0.9132]
[1761080826497,1.24659695,3963.6,3963.5,0.9132]
[1761080827594,1.02149695,3963.6,3963.5,0.9132]
[1761080827898,0.68116618,3964.2,3964.1,0.7816]
[1761080828091,1.24897966,3964.2,3964.1,0.7816]
[1761080829200,0.56997966,3964.2,3964.1,0.7816]
[1761080829405,0.00216618,3964.2,3964.1,0.7816]
[1761080829696,0.45606618,3964.2,3964.1,0.7816]
[1761080832697,0.68116618,3964.2,3964.1,0.7816]
[1761080833402,0.22726618,3964.2,3964.1,0.7816]
[1761080833603,0.68116618,3964.2,3964.1,0.7816]
[1761080834707,0.90446618,3964.2,3964.1,0.7816]
[1761080836407,0.68116618,3964.2,3964.1,0.7816]
[1761080837703,0.90232,3964.0,3963.9,9.2423]